Workbook

Sheet T&M CPA INSTRUCTIONS
B2: Sandia National Laboratories
B3: Contract Audit
B4: ECC Instructions
B5: Time and Material, Labor Hour and Fixed Rate Type Contracts (CPA)
A7: User Information:
A8: The following information does not supersede any statute, regulation or policy that is, was or will be in effect. It is designed as a tool to answer general questions that are commonly posed by contractors that are subject to audits from the Sandia Contract Audit Department. For specific questions pertaining to your contract, contact the appropriate Subcontracting Professional (SP) listed on your contract.
A10: In preparing the ECC, we require each contractor to reconcile their costs incurred during the fiscal year to ensure that all costs are properly accounted for. Costs previously invoiced/not invoiced in error can be adjusted on your claim.
A11: **All ECCs should be submitted in a single Excel workbook with separate worksheets for each contract. There should be a separate submission for each fiscal year
G12: If extra rows are needed use: | H12: Ctrl + Shift + R
B13: 1. Header: Please fill out the company name, CPA contract number, period of performance of the contract (beginning and end dates of contract), contract ceiling price and fiscal year for which the claimed costs apply.
B14: 2. Standard Purchase Order: Include the Standard Purchase Order (SPO)
B15: 3. Invoice: Include Invoice numbers, Invoice Dates, Invoice Begin Dates, Invoices End Dates.
B16: 4. Labor: Include Labor Categories, Labor Hours, and Labor Rates per each separate category on invoice. Use the dropdown for the labor type to state whether direct labor or subcontractor labor. Use the Subcontractor Labor drop down if the subcontractor labor is billed at a labor rate listed in the T&Cs, the Total for the subcontractor labor will automatically populate in the Subcontractor column.
B17: 5. Travel: List applicable domestic and foreign travel charges for each accounting period. Domestic travel charges should be listed on a separate column than foreign travel charges.
B18: 6. Materials: List the actual direct material costs for each invoice
B19: 7. ODCs (Other Direct Costs): For any other direct costs that you are claiming, segregate those costs accordingly. Some examples may include: Licensing fees, equipment leases, shipping and handling, taxes, etc. All other direct costs should be grouped together in this column. If you need to explain what the group consists of please include a comment in the comments section (use column U).
B20: 8. G&A (General and Administrative Rate): If Sandia is the cognizant agency – the indirect rate calculation and General Ledger are required to be submitted with the ECC (must include their indirect base by account, pool by account, and the unallowable expenses by account). Insert amounts claimed for G&A. All claimed indirect rates must be allowable, allocable, and audited or approved by your cognizant agency. Please see the “Indirect Rate” section below in this document for additional information.
B21: 9. Subcontracts/Consultant/Temporary Labor: List the costs incurred by Subcontractors/Consultants. If subcontractors/consultant/temporary labor are billed at a labor rate listed in the T&Cs, complete labor type (Column F) and labor category (Column G) and hours and rate (the total for labor will auto populate in the Subcontractor Column). If the Subcontractor costs are not per rates in the T&Cs, enter total amount in the Subcontractor column. For all subcontractor costs claimed on the contract complete the "Subcontractor Summary Template and include breakout of costs for each subcontractor. (A cost claim for these may be required during the audit).
B22: 10. Total Amount Claimed: This amount will auto populate based on the amounts that were included in previous columns.
B23: 11. Invoice/Credits/Payments: If the contract(s) that you are submitting cost claim information for has (have) been previously audited, it is very important that you include amounts you billed to Sandia and/or amounts you paid to Sandia, i.e., issuing a check or credit memo to Sandia, reducing an invoice amount, etc., as a result of prior audit findings. These amounts should be reported separately from your regular invoice amounts in the appropriate column of the cost claim template. The check, invoice or credit number and date should be clearly identified. Use the column marked “Invoice /Credits/Payments…” to report these amounts. Use the “Comments” column to explain the origin of each. Omission of this information could result in a bill back or payment errors when the contract is closed out.
B24: 12. Adjustments by cost element: Include any amounts that you have over billed or under billed to Sandia and discovered subsequent to the billings. This could be due to errors or omissions. This is an opportunity to claim any corrections noted as part of your review. Please provide a detailed explanation in the comments column indicating which cost category the adjustment is in reference to and why the adjustment was made
B25: 13. Total Invoice Amount: Total of all costs invoiced.
B26: 14. Comments: Use this column to describe any adjustments or other important aspects of your electronic cost claim.
A27: Additional Information
B28: Indirect Rates: If Sandia is the cognizant agency and you are claiming and billing indirect rates, then the DCAA Incurred Cost Electronically (ICE) Model, General Ledger and Financial Statements must be submitted with the ECC. The DCAA ICE is located at https://www.dcaa.mil/. If Sandia is not the cognizant agency, you are required to provide the latest rate report(s) from the cognizant agency as part of your cost claim. The rate report sheets may be e-mailed to us. Additionally, please provide the cognizant agency’s contact information including auditor’s name and phone number.
A29: Please email any questions to snlaudit@sandia.gov
A31: Submission Requirements
A32: ECCs should be submitted annually for each contract to which Sandia has audit rights. The annual submissions are due within 90 days after a contractor’s fiscal year end. Please note that it is imperative that you check for accuracy and completeness prior to your submission. Please include any indirect rate required information with submission.
A33: Additional information and points of contact may be found at the Contract Audit website at: http://www.sandia.gov/working_with_sandia/current_suppliers/contract_audit/index.html
A35: Send ECCs via e-mail to: snlaudit@sandia.gov
A38: Sandia is a multiprogram laboratory operated for the U.S. Department of Energy’s National Nuclear Security Administration
A39: by National Technology and Engineering Solutions of Sandia LLC under Contract DE-NA0003525.
A41: ='T&M CPA ECC Template'!A305 -> Template Revised: 11/8/2023
A42: SAND2023-135130

Sheet T&M CPA ECC Template
A1: Contractor Name:
A2: CPA Contract:
A3: Period of Performance:
A4: Ceiling Price:
A5: For use with T&M, LH, and Fixed Rate Type contracts
E6: COST ELEMENT BREAKOUT
A7: Send to: snlaudit@sandia.gov | E7: Show amounts as invoiced (make any corrections in the adjustment column with comments) | R7: RECONCILIATION
A8: Fiscal Year Ended: | E8: NOTE: Prompt payment discounts should not be included or shown on this claim.
AA9: Labor Type
A10: SPO Number | B10: Invoice Number | C10: Invoice Date | D10: Invoice Begin Date | E10: Invoice End Date | F10: Labor Type | G10: Labor Category | H10: Labor Hours | I10: Labor Rate | J10: Total Labor | K10: Domestic Travel | L10: Foreign Travel | M10: Materials | N10: ODCs | O10: G&A | P10: Subcontracts/Consultants/Temp. Labor | Q10: Total Claimed Amount | R10: Invoice/Credits/ Payments resulting from prior Audit Adjustments | S10: Adjustments | T10: Total Invoice Amount | U10: Comments | AA10: Direct Labor
J11: =IF(F11="Direct Labor",(H11*I11),0) -> 0 | K11: 0 | L11: 0 | M11: 0 | N11: 0 | O11: 0 | P11: =IF(F11="Subcontractor Labor",(H11*I11),0) -> 0 | Q11: =ROUND(SUM(J11:P11),2) -> 0 | R11: 0 | S11: 0 | T11: =ROUND(SUM(Q11:S11),2) -> 0 | AA11: Subcontractor Labor
J12: =IF(F12="Direct Labor",(H12*I12),0) -> 0 | K12: 0 | L12: 0 | M12: 0 | N12: 0 | O12: 0 | P12: =IF(F12="Subcontractor Labor",(H12*I12),0) -> 0 | Q12: =ROUND(SUM(J12:P12),2) -> 0 | R12: 0 | S12: 0 | T12: =ROUND(SUM(Q12:S12),2) -> 0
J13: =IF(F13="Direct Labor",(H13*I13),0) -> 0 | K13: 0 | L13: 0 | M13: 0 | N13: 0 | O13: 0 | P13: =IF(F13="Subcontractor Labor",(H13*I13),0) -> 0 | Q13: =ROUND(SUM(J13:P13),2) -> 0 | R13: 0 | S13: 0 | T13: =ROUND(SUM(Q13:S13),2) -> 0
J14: 0 | K14: 0 | L14: 0 | M14: 0 | N14: 0 | O14: 0 | P14: 0 | Q14: 0 | R14: 0 | S14: 0 | T14: 0
J15: 0 | K15: 0 | L15: 0 | M15: 0 | N15: 0 | O15: 0 | P15: 0 | Q15: 0 | R15: 0 | S15: 0 | T15: 0
J16: 0 | K16: 0 | L16: 0 | M16: 0 | N16: 0 | O16: 0 | P16: 0 | Q16: 0 | R16: 0 | S16: 0 | T16: 0
J17: 0 | K17: 0 | L17: 0 | M17: 0 | N17: 0 | O17: 0 | P17: 0 | Q17: 0 | R17: 0 | S17: 0 | T17: 0
J18: 0 | K18: 0 | L18: 0 | M18: 0 | N18: 0 | O18: 0 | P18: 0 | Q18: 0 | R18: 0 | S18: 0 | T18: 0
J19: 0 | K19: 0 | L19: 0 | M19: 0 | N19: 0 | O19: 0 | P19: 0 | Q19: 0 | R19: 0 | S19: 0 | T19: 0
J20: 0 | K20: 0 | L20: 0 | M20: 0 | N20: 0 | O20: 0 | P20: 0 | Q20: 0 | R20: 0 | S20: 0 | T20: 0
J21: 0 | K21: 0 | L21: 0 | M21: 0 | N21: 0 | O21: 0 | P21: 0 | Q21: 0 | R21: 0 | S21: 0 | T21: 0
J22: 0 | K22: 0 | L22: 0 | M22: 0 | N22: 0 | O22: 0 | P22: 0 | Q22: 0 | R22: 0 | S22: 0 | T22: 0
J23: 0 | K23: 0 | L23: 0 | M23: 0 | N23: 0 | O23: 0 | P23: =IF(F23="Subcontractor Labor",(H23*I23),0) -> 0 | Q23: =ROUND(SUM(J23:P23),2) -> 0 | R23: 0 | S23: 0 | T23: 0
J24: =IF(F24="Direct Labor",(H24*I24),0) -> 0 | K24: 0 | L24: 0 | M24: 0 | N24: 0 | O24: 0 | P24: 0 | Q24: 0 | R24: 0 | S24: 0 | T24: =ROUND(SUM(Q24:S24),2) -> 0
J25: 0 | K25: 0 | L25: 0 | M25: 0 | N25: 0 | O25: 0 | P25: 0 | Q25: 0 | R25: 0 | S25: 0 | T25: 0
J26: 0 | K26: 0 | L26: 0 | M26: 0 | N26: 0 | O26: 0 | P26: 0 | Q26: 0 | R26: 0 | S26: 0 | T26: 0
J27: 0 | K27: 0 | L27: 0 | M27: 0 | N27: 0 | O27: 0 | P27: 0 | Q27: 0 | R27: 0 | S27: 0 | T27: 0
J28: 0 | K28: 0 | L28: 0 | M28: 0 | N28: 0 | O28: 0 | P28: 0 | Q28: 0 | R28: 0 | S28: 0 | T28: 0
J29: 0 | K29: 0 | L29: 0 | M29: 0 | N29: 0 | O29: 0 | P29: 0 | Q29: 0 | R29: 0 | S29: 0 | T29: 0
J30: 0 | K30: 0 | L30: 0 | M30: 0 | N30: 0 | O30: 0 | P30: 0 | Q30: 0 | R30: 0 | S30: 0 | T30: 0
J31: 0 | K31: 0 | L31: 0 | M31: 0 | N31: 0 | O31: 0 | P31: 0 | Q31: 0 | R31: 0 | S31: 0 | T31: 0
J32: 0 | K32: 0 | L32: 0 | M32: 0 | N32: 0 | O32: 0 | P32: 0 | Q32: 0 | R32: 0 | S32: 0 | T32: 0
J33: 0 | K33: 0 | L33: 0 | M33: 0 | N33: 0 | O33: 0 | P33: =IF(F33="Subcontractor Labor",(H33*I33),0) -> 0 | Q33: =ROUND(SUM(J33:P33),2) -> 0 | R33: 0 | S33: 0 | T33: 0
J34: 0 | K34: 0 | L34: 0 | M34: 0 | N34: 0 | O34: 0 | P34: 0 | Q34: 0 | R34: 0 | S34: 0 | T34: 0
J35: 0 | K35: 0 | L35: 0 | M35: 0 | N35: 0 | O35: 0 | P35: 0 | Q35: 0 | R35: 0 | S35: 0 | T35: 0
J36: 0 | K36: 0 | L36: 0 | M36: 0 | N36: 0 | O36: 0 | P36: 0 | Q36: 0 | R36: 0 | S36: 0 | T36: 0
J37: 0 | K37: 0 | L37: 0 | M37: 0 | N37: 0 | O37: 0 | P37: 0 | Q37: 0 | R37: 0 | S37: 0 | T37: 0
J38: 0 | K38: 0 | L38: 0 | M38: 0 | N38: 0 | O38: 0 | P38: 0 | Q38: 0 | R38: 0 | S38: 0 | T38: 0
J39: 0 | K39: 0 | L39: 0 | M39: 0 | N39: 0 | O39: 0 | P39: 0 | Q39: 0 | R39: 0 | S39: 0 | T39: 0
J40: 0 | K40: 0 | L40: 0 | M40: 0 | N40: 0 | O40: 0 | P40: 0 | Q40: 0 | R40: 0 | S40: 0 | T40: 0
J41: 0 | K41: 0 | L41: 0 | M41: 0 | N41: 0 | O41: 0 | P41: 0 | Q41: 0 | R41: 0 | S41: 0 | T41: 0
J42: 0 | K42: 0 | L42: 0 | M42: 0 | N42: 0 | O42: 0 | P42: 0 | Q42: 0 | R42: 0 | S42: 0 | T42: 0
J43: 0 | K43: 0 | L43: 0 | M43: 0 | N43: 0 | O43: 0 | P43: =IF(F43="Subcontractor Labor",(H43*I43),0) -> 0 | Q43: =ROUND(SUM(J43:P43),2) -> 0 | R43: 0 | S43: 0 | T43: 0
J44: 0 | K44: 0 | L44: 0 | M44: 0 | N44: 0 | O44: 0 | P44: 0 | Q44: 0 | R44: 0 | S44: 0 | T44: 0
J45: 0 | K45: 0 | L45: 0 | M45: 0 | N45: 0 | O45: 0 | P45: 0 | Q45: 0 | R45: 0 | S45: 0 | T45: 0
J46: 0 | K46: 0 | L46: 0 | M46: 0 | N46: 0 | O46: 0 | P46: 0 | Q46: 0 | R46: 0 | S46: 0 | T46: 0
J47: 0 | K47: 0 | L47: 0 | M47: 0 | N47: 0 | O47: 0 | P47: 0 | Q47: 0 | R47: 0 | S47: 0 | T47: 0
J48: 0 | K48: 0 | L48: 0 | M48: 0 | N48: 0 | O48: 0 | P48: 0 | Q48: 0 | R48: 0 | S48: 0 | T48: 0
J49: 0 | K49: 0 | L49: 0 | M49: 0 | N49: 0 | O49: 0 | P49: 0 | Q49: 0 | R49: 0 | S49: 0 | T49: 0
J50: 0 | K50: 0 | L50: 0 | M50: 0 | N50: 0 | O50: 0 | P50: 0 | Q50: 0 | R50: 0 | S50: 0 | T50: 0
J51: 0 | K51: 0 | L51: 0 | M51: 0 | N51: 0 | O51: 0 | P51: 0 | Q51: 0 | R51: 0 | S51: 0 | T51: 0
J52: 0 | K52: 0 | L52: 0 | M52: 0 | N52: 0 | O52: 0 | P52: 0 | Q52: 0 | R52: 0 | S52: 0 | T52: 0
J53: 0 | K53: 0 | L53: 0 | M53: 0 | N53: 0 | O53: 0 | P53: =IF(F53="Subcontractor Labor",(H53*I53),0) -> 0 | Q53: =ROUND(SUM(J53:P53),2) -> 0 | R53: 0 | S53: 0 | T53: 0
J54: 0 | K54: 0 | L54: 0 | M54: 0 | N54: 0 | O54: 0 | P54: 0 | Q54: 0 | R54: 0 | S54: 0 | T54: 0
J55: 0 | K55: 0 | L55: 0 | M55: 0 | N55: 0 | O55: 0 | P55: 0 | Q55: 0 | R55: 0 | S55: 0 | T55: 0
J56: 0 | K56: 0 | L56: 0 | M56: 0 | N56: 0 | O56: 0 | P56: 0 | Q56: 0 | R56: 0 | S56: 0 | T56: 0
J57: 0 | K57: 0 | L57: 0 | M57: 0 | N57: 0 | O57: 0 | P57: 0 | Q57: 0 | R57: 0 | S57: 0 | T57: 0
J58: 0 | K58: 0 | L58: 0 | M58: 0 | N58: 0 | O58: 0 | P58: 0 | Q58: 0 | R58: 0 | S58: 0 | T58: 0
J59: 0 | K59: 0 | L59: 0 | M59: 0 | N59: 0 | O59: 0 | P59: 0 | Q59: 0 | R59: 0 | S59: 0 | T59: 0
J60: 0 | K60: 0 | L60: 0 | M60: 0 | N60: 0 | O60: 0 | P60: 0 | Q60: 0 | R60: 0 | S60: 0 | T60: 0
J61: 0 | K61: 0 | L61: 0 | M61: 0 | N61: 0 | O61: 0 | P61: 0 | Q61: 0 | R61: 0 | S61: 0 | T61: 0
J62: 0 | K62: 0 | L62: 0 | M62: 0 | N62: 0 | O62: 0 | P62: 0 | Q62: 0 | R62: 0 | S62: 0 | T62: 0
J63: 0 | K63: 0 | L63: 0 | M63: 0 | N63: 0 | O63: 0 | P63: =IF(F63="Subcontractor Labor",(H63*I63),0) -> 0 | Q63: =ROUND(SUM(J63:P63),2) -> 0 | R63: 0 | S63: 0 | T63: 0
J64: 0 | K64: 0 | L64: 0 | M64: 0 | N64: 0 | O64: 0 | P64: 0 | Q64: 0 | R64: 0 | S64: 0 | T64: 0
J65: 0 | K65: 0 | L65: 0 | M65: 0 | N65: 0 | O65: 0 | P65: 0 | Q65: 0 | R65: 0 | S65: 0 | T65: 0
J66: 0 | K66: 0 | L66: 0 | M66: 0 | N66: 0 | O66: 0 | P66: 0 | Q66: 0 | R66: 0 | S66: 0 | T66: 0
J67: 0 | K67: 0 | L67: 0 | M67: 0 | N67: 0 | O67: 0 | P67: 0 | Q67: 0 | R67: 0 | S67: 0 | T67: 0
J68: 0 | K68: 0 | L68: 0 | M68: 0 | N68: 0 | O68: 0 | P68: 0 | Q68: 0 | R68: 0 | S68: 0 | T68: 0
J69: 0 | K69: 0 | L69: 0 | M69: 0 | N69: 0 | O69: 0 | P69: 0 | Q69: 0 | R69: 0 | S69: 0 | T69: 0
J70: 0 | K70: 0 | L70: 0 | M70: 0 | N70: 0 | O70: 0 | P70: 0 | Q70: 0 | R70: 0 | S70: 0 | T70: 0
J71: 0 | K71: 0 | L71: 0 | M71: 0 | N71: 0 | O71: 0 | P71: 0 | Q71: 0 | R71: 0 | S71: 0 | T71: 0
J72: 0 | K72: 0 | L72: 0 | M72: 0 | N72: 0 | O72: 0 | P72: 0 | Q72: 0 | R72: 0 | S72: 0 | T72: 0
J73: 0 | K73: 0 | L73: 0 | M73: 0 | N73: 0 | O73: 0 | P73: =IF(F73="Subcontractor Labor",(H73*I73),0) -> 0 | Q73: =ROUND(SUM(J73:P73),2) -> 0 | R73: 0 | S73: 0 | T73: 0
J74: 0 | K74: 0 | L74: 0 | M74: 0 | N74: 0 | O74: 0 | P74: 0 | Q74: 0 | R74: 0 | S74: 0 | T74: 0
J75: 0 | K75: 0 | L75: 0 | M75: 0 | N75: 0 | O75: 0 | P75: 0 | Q75: 0 | R75: 0 | S75: 0 | T75: 0
J76: 0 | K76: 0 | L76: 0 | M76: 0 | N76: 0 | O76: 0 | P76: 0 | Q76: 0 | R76: 0 | S76: 0 | T76: 0
J77: 0 | K77: 0 | L77: 0 | M77: 0 | N77: 0 | O77: 0 | P77: 0 | Q77: 0 | R77: 0 | S77: 0 | T77: 0
J78: 0 | K78: 0 | L78: 0 | M78: 0 | N78: 0 | O78: 0 | P78: 0 | Q78: 0 | R78: 0 | S78: 0 | T78: 0
J79: 0 | K79: 0 | L79: 0 | M79: 0 | N79: 0 | O79: 0 | P79: 0 | Q79: 0 | R79: 0 | S79: 0 | T79: 0
J80: 0 | K80: 0 | L80: 0 | M80: 0 | N80: 0 | O80: 0 | P80: 0 | Q80: 0 | R80: 0 | S80: 0 | T80: 0
J81: 0 | K81: 0 | L81: 0 | M81: 0 | N81: 0 | O81: 0 | P81: 0 | Q81: 0 | R81: 0 | S81: 0 | T81: 0
J82: 0 | K82: 0 | L82: 0 | M82: 0 | N82: 0 | O82: 0 | P82: 0 | Q82: 0 | R82: 0 | S82: 0 | T82: 0
J83: 0 | K83: 0 | L83: 0 | M83: 0 | N83: 0 | O83: 0 | P83: =IF(F83="Subcontractor Labor",(H83*I83),0) -> 0 | Q83: =ROUND(SUM(J83:P83),2) -> 0 | R83: 0 | S83: 0 | T83: 0
J84: 0 | K84: 0 | L84: 0 | M84: 0 | N84: 0 | O84: 0 | P84: 0 | Q84: 0 | R84: 0 | S84: 0 | T84: 0
J85: 0 | K85: 0 | L85: 0 | M85: 0 | N85: 0 | O85: 0 | P85: 0 | Q85: 0 | R85: 0 | S85: 0 | T85: 0
J86: 0 | K86: 0 | L86: 0 | M86: 0 | N86: 0 | O86: 0 | P86: 0 | Q86: 0 | R86: 0 | S86: 0 | T86: 0
J87: 0 | K87: 0 | L87: 0 | M87: 0 | N87: 0 | O87: 0 | P87: 0 | Q87: 0 | R87: 0 | S87: 0 | T87: 0
J88: 0 | K88: 0 | L88: 0 | M88: 0 | N88: 0 | O88: 0 | P88: 0 | Q88: 0 | R88: 0 | S88: 0 | T88: 0
J89: 0 | K89: 0 | L89: 0 | M89: 0 | N89: 0 | O89: 0 | P89: 0 | Q89: 0 | R89: 0 | S89: 0 | T89: 0
J90: 0 | K90: 0 | L90: 0 | M90: 0 | N90: 0 | O90: 0 | P90: 0 | Q90: 0 | R90: 0 | S90: 0 | T90: 0
J91: 0 | K91: 0 | L91: 0 | M91: 0 | N91: 0 | O91: 0 | P91: 0 | Q91: 0 | R91: 0 | S91: 0 | T91: 0
J92: 0 | K92: 0 | L92: 0 | M92: 0 | N92: 0 | O92: 0 | P92: 0 | Q92: 0 | R92: 0 | S92: 0 | T92: 0
J93: 0 | K93: 0 | L93: 0 | M93: 0 | N93: 0 | O93: 0 | P93: =IF(F93="Subcontractor Labor",(H93*I93),0) -> 0 | Q93: =ROUND(SUM(J93:P93),2) -> 0 | R93: 0 | S93: 0 | T93: 0
J94: 0 | K94: 0 | L94: 0 | M94: 0 | N94: 0 | O94: 0 | P94: 0 | Q94: 0 | R94: 0 | S94: 0 | T94: 0
J95: 0 | K95: 0 | L95: 0 | M95: 0 | N95: 0 | O95: 0 | P95: 0 | Q95: 0 | R95: 0 | S95: 0 | T95: 0
J96: 0 | K96: 0 | L96: 0 | M96: 0 | N96: 0 | O96: 0 | P96: 0 | Q96: 0 | R96: 0 | S96: 0 | T96: 0
J97: 0 | K97: 0 | L97: 0 | M97: 0 | N97: 0 | O97: 0 | P97: 0 | Q97: 0 | R97: 0 | S97: 0 | T97: 0
J98: 0 | K98: 0 | L98: 0 | M98: 0 | N98: 0 | O98: 0 | P98: 0 | Q98: 0 | R98: 0 | S98: 0 | T98: 0
J99: 0 | K99: 0 | L99: 0 | M99: 0 | N99: 0 | O99: 0 | P99: 0 | Q99: 0 | R99: 0 | S99: 0 | T99: 0
J100: 0 | K100: 0 | L100: 0 | M100: 0 | N100: 0 | O100: 0 | P100: 0 | Q100: 0 | R100: 0 | S100: 0 | T100: 0
J101: 0 | K101: 0 | L101: 0 | M101: 0 | N101: 0 | O101: 0 | P101: 0 | Q101: 0 | R101: 0 | S101: 0 | T101: 0
J102: 0 | K102: 0 | L102: 0 | M102: 0 | N102: 0 | O102: 0 | P102: 0 | Q102: 0 | R102: 0 | S102: 0 | T102: 0
J103: 0 | K103: 0 | L103: 0 | M103: 0 | N103: 0 | O103: 0 | P103: =IF(F103="Subcontractor Labor",(H103*I103),0) -> 0 | Q103: =ROUND(SUM(J103:P103),2) -> 0 | R103: 0 | S103: 0 | T103: 0
J104: 0 | K104: 0 | L104: 0 | M104: 0 | N104: 0 | O104: 0 | P104: 0 | Q104: 0 | R104: 0 | S104: 0 | T104: 0
J105: 0 | K105: 0 | L105: 0 | M105: 0 | N105: 0 | O105: 0 | P105: 0 | Q105: 0 | R105: 0 | S105: 0 | T105: 0
J106: 0 | K106: 0 | L106: 0 | M106: 0 | N106: 0 | O106: 0 | P106: 0 | Q106: 0 | R106: 0 | S106: 0 | T106: 0
J107: 0 | K107: 0 | L107: 0 | M107: 0 | N107: 0 | O107: 0 | P107: 0 | Q107: 0 | R107: 0 | S107: 0 | T107: 0
J108: 0 | K108: 0 | L108: 0 | M108: 0 | N108: 0 | O108: 0 | P108: 0 | Q108: 0 | R108: 0 | S108: 0 | T108: 0
J109: 0 | K109: 0 | L109: 0 | M109: 0 | N109: 0 | O109: 0 | P109: 0 | Q109: 0 | R109: 0 | S109: 0 | T109: 0
J110: 0 | K110: 0 | L110: 0 | M110: 0 | N110: 0 | O110: 0 | P110: 0 | Q110: 0 | R110: 0 | S110: 0 | T110: 0
J111: 0 | K111: 0 | L111: 0 | M111: 0 | N111: 0 | O111: 0 | P111: 0 | Q111: 0 | R111: 0 | S111: 0 | T111: 0
J112: 0 | K112: 0 | L112: 0 | M112: 0 | N112: 0 | O112: 0 | P112: 0 | Q112: 0 | R112: 0 | S112: 0 | T112: 0
J113: 0 | K113: 0 | L113: 0 | M113: 0 | N113: 0 | O113: 0 | P113: =IF(F113="Subcontractor Labor",(H113*I113),0) -> 0 | Q113: =ROUND(SUM(J113:P113),2) -> 0 | R113: 0 | S113: 0 | T113: 0
J114: 0 | K114: 0 | L114: 0 | M114: 0 | N114: 0 | O114: 0 | P114: 0 | Q114: 0 | R114: 0 | S114: 0 | T114: 0
J115: 0 | K115: 0 | L115: 0 | M115: 0 | N115: 0 | O115: 0 | P115: 0 | Q115: 0 | R115: 0 | S115: 0 | T115: 0
J116: 0 | K116: 0 | L116: 0 | M116: 0 | N116: 0 | O116: 0 | P116: 0 | Q116: 0 | R116: 0 | S116: 0 | T116: 0
J117: 0 | K117: 0 | L117: 0 | M117: 0 | N117: 0 | O117: 0 | P117: 0 | Q117: 0 | R117: 0 | S117: 0 | T117: 0
J118: 0 | K118: 0 | L118: 0 | M118: 0 | N118: 0 | O118: 0 | P118: 0 | Q118: 0 | R118: 0 | S118: 0 | T118: 0
J119: 0 | K119: 0 | L119: 0 | M119: 0 | N119: 0 | O119: 0 | P119: 0 | Q119: 0 | R119: 0 | S119: 0 | T119: 0
J120: 0 | K120: 0 | L120: 0 | M120: 0 | N120: 0 | O120: 0 | P120: 0 | Q120: 0 | R120: 0 | S120: 0 | T120: 0
J121: 0 | K121: 0 | L121: 0 | M121: 0 | N121: 0 | O121: 0 | P121: 0 | Q121: 0 | R121: 0 | S121: 0 | T121: 0
J122: 0 | K122: 0 | L122: 0 | M122: 0 | N122: 0 | O122: 0 | P122: 0 | Q122: 0 | R122: 0 | S122: 0 | T122: 0
J123: 0 | K123: 0 | L123: 0 | M123: 0 | N123: 0 | O123: 0 | P123: =IF(F123="Subcontractor Labor",(H123*I123),0) -> 0 | Q123: =ROUND(SUM(J123:P123),2) -> 0 | R123: 0 | S123: 0 | T123: 0
J124: 0 | K124: 0 | L124: 0 | M124: 0 | N124: 0 | O124: 0 | P124: 0 | Q124: 0 | R124: 0 | S124: 0 | T124: 0
J125: 0 | K125: 0 | L125: 0 | M125: 0 | N125: 0 | O125: 0 | P125: 0 | Q125: 0 | R125: 0 | S125: 0 | T125: 0
J126: 0 | K126: 0 | L126: 0 | M126: 0 | N126: 0 | O126: 0 | P126: 0 | Q126: 0 | R126: 0 | S126: 0 | T126: 0
J127: 0 | K127: 0 | L127: 0 | M127: 0 | N127: 0 | O127: 0 | P127: 0 | Q127: 0 | R127: 0 | S127: 0 | T127: 0
J128: 0 | K128: 0 | L128: 0 | M128: 0 | N128: 0 | O128: 0 | P128: 0 | Q128: 0 | R128: 0 | S128: 0 | T128: 0
J129: 0 | K129: 0 | L129: 0 | M129: 0 | N129: 0 | O129: 0 | P129: 0 | Q129: 0 | R129: 0 | S129: 0 | T129: 0
J130: 0 | K130: 0 | L130: 0 | M130: 0 | N130: 0 | O130: 0 | P130: 0 | Q130: 0 | R130: 0 | S130: 0 | T130: 0
J131: 0 | K131: 0 | L131: 0 | M131: 0 | N131: 0 | O131: 0 | P131: 0 | Q131: 0 | R131: 0 | S131: 0 | T131: 0
J132: 0 | K132: 0 | L132: 0 | M132: 0 | N132: 0 | O132: 0 | P132: 0 | Q132: 0 | R132: 0 | S132: 0 | T132: 0
J133: 0 | K133: 0 | L133: 0 | M133: 0 | N133: 0 | O133: 0 | P133: =IF(F133="Subcontractor Labor",(H133*I133),0) -> 0 | Q133: =ROUND(SUM(J133:P133),2) -> 0 | R133: 0 | S133: 0 | T133: 0
J134: 0 | K134: 0 | L134: 0 | M134: 0 | N134: 0 | O134: 0 | P134: 0 | Q134: 0 | R134: 0 | S134: 0 | T134: 0
J135: 0 | K135: 0 | L135: 0 | M135: 0 | N135: 0 | O135: 0 | P135: 0 | Q135: 0 | R135: 0 | S135: 0 | T135: 0
J136: 0 | K136: 0 | L136: 0 | M136: 0 | N136: 0 | O136: 0 | P136: 0 | Q136: 0 | R136: 0 | S136: 0 | T136: 0
J137: 0 | K137: 0 | L137: 0 | M137: 0 | N137: 0 | O137: 0 | P137: 0 | Q137: 0 | R137: 0 | S137: 0 | T137: 0
J138: 0 | K138: 0 | L138: 0 | M138: 0 | N138: 0 | O138: 0 | P138: 0 | Q138: 0 | R138: 0 | S138: 0 | T138: 0
J139: 0 | K139: 0 | L139: 0 | M139: 0 | N139: 0 | O139: 0 | P139: 0 | Q139: 0 | R139: 0 | S139: 0 | T139: 0
J140: 0 | K140: 0 | L140: 0 | M140: 0 | N140: 0 | O140: 0 | P140: 0 | Q140: 0 | R140: 0 | S140: 0 | T140: 0
J141: 0 | K141: 0 | L141: 0 | M141: 0 | N141: 0 | O141: 0 | P141: 0 | Q141: 0 | R141: 0 | S141: 0 | T141: 0
J142: 0 | K142: 0 | L142: 0 | M142: 0 | N142: 0 | O142: 0 | P142: 0 | Q142: 0 | R142: 0 | S142: 0 | T142: 0
J143: 0 | K143: 0 | L143: 0 | M143: 0 | N143: 0 | O143: 0 | P143: =IF(F143="Subcontractor Labor",(H143*I143),0) -> 0 | Q143: =ROUND(SUM(J143:P143),2) -> 0 | R143: 0 | S143: 0 | T143: 0
J144: 0 | K144: 0 | L144: 0 | M144: 0 | N144: 0 | O144: 0 | P144: 0 | Q144: 0 | R144: 0 | S144: 0 | T144: 0
J145: 0 | K145: 0 | L145: 0 | M145: 0 | N145: 0 | O145: 0 | P145: 0 | Q145: 0 | R145: 0 | S145: 0 | T145: 0
J146: 0 | K146: 0 | L146: 0 | M146: 0 | N146: 0 | O146: 0 | P146: 0 | Q146: 0 | R146: 0 | S146: 0 | T146: 0
J147: 0 | K147: 0 | L147: 0 | M147: 0 | N147: 0 | O147: 0 | P147: 0 | Q147: 0 | R147: 0 | S147: 0 | T147: 0
J148: 0 | K148: 0 | L148: 0 | M148: 0 | N148: 0 | O148: 0 | P148: 0 | Q148: 0 | R148: 0 | S148: 0 | T148: 0
J149: 0 | K149: 0 | L149: 0 | M149: 0 | N149: 0 | O149: 0 | P149: 0 | Q149: 0 | R149: 0 | S149: 0 | T149: 0
J150: 0 | K150: 0 | L150: 0 | M150: 0 | N150: 0 | O150: 0 | P150: 0 | Q150: 0 | R150: 0 | S150: 0 | T150: 0
J151: 0 | K151: 0 | L151: 0 | M151: 0 | N151: 0 | O151: 0 | P151: 0 | Q151: 0 | R151: 0 | S151: 0 | T151: 0
J152: 0 | K152: 0 | L152: 0 | M152: 0 | N152: 0 | O152: 0 | P152: 0 | Q152: 0 | R152: 0 | S152: 0 | T152: 0
J153: 0 | K153: 0 | L153: 0 | M153: 0 | N153: 0 | O153: 0 | P153: =IF(F153="Subcontractor Labor",(H153*I153),0) -> 0 | Q153: =ROUND(SUM(J153:P153),2) -> 0 | R153: 0 | S153: 0 | T153: 0
J154: 0 | K154: 0 | L154: 0 | M154: 0 | N154: 0 | O154: 0 | P154: 0 | Q154: 0 | R154: 0 | S154: 0 | T154: 0
J155: 0 | K155: 0 | L155: 0 | M155: 0 | N155: 0 | O155: 0 | P155: 0 | Q155: 0 | R155: 0 | S155: 0 | T155: 0
J156: 0 | K156: 0 | L156: 0 | M156: 0 | N156: 0 | O156: 0 | P156: 0 | Q156: 0 | R156: 0 | S156: 0 | T156: 0
J157: 0 | K157: 0 | L157: 0 | M157: 0 | N157: 0 | O157: 0 | P157: 0 | Q157: 0 | R157: 0 | S157: 0 | T157: 0
J158: 0 | K158: 0 | L158: 0 | M158: 0 | N158: 0 | O158: 0 | P158: 0 | Q158: 0 | R158: 0 | S158: 0 | T158: 0
J159: 0 | K159: 0 | L159: 0 | M159: 0 | N159: 0 | O159: 0 | P159: 0 | Q159: 0 | R159: 0 | S159: 0 | T159: 0
J160: 0 | K160: 0 | L160: 0 | M160: 0 | N160: 0 | O160: 0 | P160: 0 | Q160: 0 | R160: 0 | S160: 0 | T160: 0
J161: 0 | K161: 0 | L161: 0 | M161: 0 | N161: 0 | O161: 0 | P161: 0 | Q161: 0 | R161: 0 | S161: 0 | T161: 0
J162: 0 | K162: 0 | L162: 0 | M162: 0 | N162: 0 | O162: 0 | P162: 0 | Q162: 0 | R162: 0 | S162: 0 | T162: 0
J163: 0 | K163: 0 | L163: 0 | M163: 0 | N163: 0 | O163: 0 | P163: =IF(F163="Subcontractor Labor",(H163*I163),0) -> 0 | Q163: =ROUND(SUM(J163:P163),2) -> 0 | R163: 0 | S163: 0 | T163: 0
J164: 0 | K164: 0 | L164: 0 | M164: 0 | N164: 0 | O164: 0 | P164: 0 | Q164: 0 | R164: 0 | S164: 0 | T164: 0
J165: 0 | K165: 0 | L165: 0 | M165: 0 | N165: 0 | O165: 0 | P165: 0 | Q165: 0 | R165: 0 | S165: 0 | T165: 0
J166: 0 | K166: 0 | L166: 0 | M166: 0 | N166: 0 | O166: 0 | P166: 0 | Q166: 0 | R166: 0 | S166: 0 | T166: 0
J167: 0 | K167: 0 | L167: 0 | M167: 0 | N167: 0 | O167: 0 | P167: 0 | Q167: 0 | R167: 0 | S167: 0 | T167: 0
J168: 0 | K168: 0 | L168: 0 | M168: 0 | N168: 0 | O168: 0 | P168: 0 | Q168: 0 | R168: 0 | S168: 0 | T168: 0
J169: 0 | K169: 0 | L169: 0 | M169: 0 | N169: 0 | O169: 0 | P169: 0 | Q169: 0 | R169: 0 | S169: 0 | T169: 0
J170: 0 | K170: 0 | L170: 0 | M170: 0 | N170: 0 | O170: 0 | P170: 0 | Q170: 0 | R170: 0 | S170: 0 | T170: 0
J171: 0 | K171: 0 | L171: 0 | M171: 0 | N171: 0 | O171: 0 | P171: 0 | Q171: 0 | R171: 0 | S171: 0 | T171: 0
J172: 0 | K172: 0 | L172: 0 | M172: 0 | N172: 0 | O172: 0 | P172: 0 | Q172: 0 | R172: 0 | S172: 0 | T172: 0
J173: 0 | K173: 0 | L173: 0 | M173: 0 | N173: 0 | O173: 0 | P173: =IF(F173="Subcontractor Labor",(H173*I173),0) -> 0 | Q173: =ROUND(SUM(J173:P173),2) -> 0 | R173: 0 | S173: 0 | T173: 0
J174: 0 | K174: 0 | L174: 0 | M174: 0 | N174: 0 | O174: 0 | P174: 0 | Q174: 0 | R174: 0 | S174: 0 | T174: 0
J175: 0 | K175: 0 | L175: 0 | M175: 0 | N175: 0 | O175: 0 | P175: 0 | Q175: 0 | R175: 0 | S175: 0 | T175: 0
J176: 0 | K176: 0 | L176: 0 | M176: 0 | N176: 0 | O176: 0 | P176: 0 | Q176: 0 | R176: 0 | S176: 0 | T176: 0
J177: 0 | K177: 0 | L177: 0 | M177: 0 | N177: 0 | O177: 0 | P177: 0 | Q177: 0 | R177: 0 | S177: 0 | T177: 0
J178: 0 | K178: 0 | L178: 0 | M178: 0 | N178: 0 | O178: 0 | P178: 0 | Q178: 0 | R178: 0 | S178: 0 | T178: 0
J179: 0 | K179: 0 | L179: 0 | M179: 0 | N179: 0 | O179: 0 | P179: 0 | Q179: 0 | R179: 0 | S179: 0 | T179: 0
J180: 0 | K180: 0 | L180: 0 | M180: 0 | N180: 0 | O180: 0 | P180: 0 | Q180: 0 | R180: 0 | S180: 0 | T180: 0
J181: 0 | K181: 0 | L181: 0 | M181: 0 | N181: 0 | O181: 0 | P181: 0 | Q181: 0 | R181: 0 | S181: 0 | T181: 0
J182: 0 | K182: 0 | L182: 0 | M182: 0 | N182: 0 | O182: 0 | P182: 0 | Q182: 0 | R182: 0 | S182: 0 | T182: 0
J183: 0 | K183: 0 | L183: 0 | M183: 0 | N183: 0 | O183: 0 | P183: =IF(F183="Subcontractor Labor",(H183*I183),0) -> 0 | Q183: =ROUND(SUM(J183:P183),2) -> 0 | R183: 0 | S183: 0 | T183: 0
J184: 0 | K184: 0 | L184: 0 | M184: 0 | N184: 0 | O184: 0 | P184: 0 | Q184: 0 | R184: 0 | S184: 0 | T184: 0
J185: 0 | K185: 0 | L185: 0 | M185: 0 | N185: 0 | O185: 0 | P185: 0 | Q185: 0 | R185: 0 | S185: 0 | T185: 0
J186: 0 | K186: 0 | L186: 0 | M186: 0 | N186: 0 | O186: 0 | P186: 0 | Q186: 0 | R186: 0 | S186: 0 | T186: 0
J187: 0 | K187: 0 | L187: 0 | M187: 0 | N187: 0 | O187: 0 | P187: 0 | Q187: 0 | R187: 0 | S187: 0 | T187: 0
J188: 0 | K188: 0 | L188: 0 | M188: 0 | N188: 0 | O188: 0 | P188: 0 | Q188: 0 | R188: 0 | S188: 0 | T188: 0
J189: 0 | K189: 0 | L189: 0 | M189: 0 | N189: 0 | O189: 0 | P189: 0 | Q189: 0 | R189: 0 | S189: 0 | T189: 0
J190: 0 | K190: 0 | L190: 0 | M190: 0 | N190: 0 | O190: 0 | P190: 0 | Q190: 0 | R190: 0 | S190: 0 | T190: 0
J191: 0 | K191: 0 | L191: 0 | M191: 0 | N191: 0 | O191: 0 | P191: 0 | Q191: 0 | R191: 0 | S191: 0 | T191: 0
J192: 0 | K192: 0 | L192: 0 | M192: 0 | N192: 0 | O192: 0 | P192: 0 | Q192: 0 | R192: 0 | S192: 0 | T192: 0
J193: 0 | K193: 0 | L193: 0 | M193: 0 | N193: 0 | O193: 0 | P193: =IF(F193="Subcontractor Labor",(H193*I193),0) -> 0 | Q193: =ROUND(SUM(J193:P193),2) -> 0 | R193: 0 | S193: 0 | T193: 0
J194: 0 | K194: 0 | L194: 0 | M194: 0 | N194: 0 | O194: 0 | P194: 0 | Q194: 0 | R194: 0 | S194: 0 | T194: 0
J195: 0 | K195: 0 | L195: 0 | M195: 0 | N195: 0 | O195: 0 | P195: 0 | Q195: 0 | R195: 0 | S195: 0 | T195: 0
J196: 0 | K196: 0 | L196: 0 | M196: 0 | N196: 0 | O196: 0 | P196: 0 | Q196: 0 | R196: 0 | S196: 0 | T196: 0
J197: 0 | K197: 0 | L197: 0 | M197: 0 | N197: 0 | O197: 0 | P197: 0 | Q197: 0 | R197: 0 | S197: 0 | T197: 0
J198: 0 | K198: 0 | L198: 0 | M198: 0 | N198: 0 | O198: 0 | P198: 0 | Q198: 0 | R198: 0 | S198: 0 | T198: 0
J199: 0 | K199: 0 | L199: 0 | M199: 0 | N199: 0 | O199: 0 | P199: 0 | Q199: 0 | R199: 0 | S199: 0 | T199: 0
J200: 0 | K200: 0 | L200: 0 | M200: 0 | N200: 0 | O200: 0 | P200: 0 | Q200: 0 | R200: 0 | S200: 0 | T200: 0
... 102 more rows

Sheet Subcontractor Summary Template
A1: Summary of Subcontractor/Consultant/Temp Labor Charges
A2: List all subcontractors/consultants/temporary labor used on the contract. (A cost claim for these may be required during the audit.)
B4: Dollar Amount
A5: Subcontractor A | B5: 0
A6: Subcontractor B
A7: Subcontractor C
A8: Subtotal | B8: =SUM(B5:B7) -> 0
A10: Consultant A
A11: Consultant B
A12: Subtotal | B12: =SUM(B10:B11) -> 0
A14: Temp A
A15: Temp B
A16: Subtotal | B16: =SUM(B14:B15) -> 0
A18: Total Charges | B18: =SUM(B8,B12,B16) -> 0
A22: ='T&M CPA ECC Template'!A305 -> Template Revised: 11/8/2023

Sheet Sample T&M CPA ECC
A1: Contractor Name: ABC Company
A2: CPA Contract: 1234567
A3: Period of Performance: | B3: 1/1/2019-8/30/2020
A4: Ceiling Price: | B4: 500000 | AU4: Labor Type
A5: For use with T&M, LH and Fixed Rate Type contracts | AU5: Direct Labor
E6: COST ELEMENT BREAKOUT | AU6: Subcontractor Labor
A7: Send to: snlaudit@sandia.gov | E7: Show amounts as invoiced (make any corrections in the adjustment column with comments) | R7: RECONCILIATION
A8: Fiscal Year Ended: | B8: 2019 | E8: NOTE: Prompt payment discounts should not be included or shown on this claim.
A10: SPO Number | B10: Invoice Number | C10: Invoice Date | D10: Invoice Begin Date | E10: Invoice End Date | F10: Labor Type | G10: Labor Category | H10: Labor Hours | I10: Labor Rate | J10: Total Labor | K10: Domestic Travel | L10: Foreign Travel | M10: Materials | N10: ODCs | O10: G&A | P10: Subcontracts/Consultants/Temp. Labor | Q10: Total Claimed Amount | R10: Invoice/Credits/ Payments resulting from prior Audit Adjustments | S10: Adjustments | T10: Total Invoice Amount | U10: Comments
A11: 1245639 | B11: 1500 | C11: 2019-01-30 | D11: 2019-01-01 | E11: 2019-01-30 | F11: Subcontractor Labor | G11: Scientist 1 | H11: 100 | I11: 100 | J11: =IF(F11="Direct Labor",(H11*I11),0) -> 0 | K11: 5623 | L11: 10000 | M11: 5623 | N11: 0 | O11: =M11*22% -> 1237.06 | P11: =IF(F11="Subcontractor Labor",(H11*I11),0) -> 10000 | Q11: =ROUND(SUM(J11:P11),2) -> 32483.06 | R11: 0 | S11: -100 | T11: =+Table33[[#This Row],[Total Claimed Amount]]+Table33[[#This Row],[Invoice/Credits/ Payments resulting from prior Audit Adjustments]]+Table33[[#This Row],[Adjustments]] -> 32383.06 | U11: Inadvertently did not bill 1 hour for time on 1/29/2019, included in ECC
A12: 1235468 | B12: 1532 | C12: 2019-02-28 | D12: 2019-02-01 | E12: 2019-02-28 | F12: Direct Labor | G12: Senior Scientist | H12: 50 | I12: 200 | J12: =IF(F12="Direct Labor",(H12*I12),0) -> 10000 | K12: 0 | L12: 0 | M12: 0 | N12: 50 | O12: 0 | P12: =IF(F12="Subcontractor Labor",(H12*I12),0) -> 0 | Q12: 10050 | R12: 0 | S12: 0 | T12: =+Table33[[#This Row],[Total Claimed Amount]]+Table33[[#This Row],[Invoice/Credits/ Payments resulting from prior Audit Adjustments]]+Table33[[#This Row],[Adjustments]] -> 10050
A13: 1245639 | B13: 3063 | C13: 2019-03-31 | D13: 2019-03-01 | E13: 2019-03-31 | F13: Direct Labor | G13: Project Controller | H13: 65 | I13: 300 | J13: 19500 | K13: 3000 | L13: 0 | M13: 0 | N13: 0 | O13: 0 | P13: 0 | Q13: 22500 | R13: 0 | S13: 0 | T13: =+Table33[[#This Row],[Total Claimed Amount]]+Table33[[#This Row],[Invoice/Credits/ Payments resulting from prior Audit Adjustments]]+Table33[[#This Row],[Adjustments]] -> 22500
A14: 1235468 | B14: 4594 | C14: 2019-04-30 | D14: 2019-04-01 | E14: 2019-04-30 | F14: Subcontractor Labor | G14: Scientist 1 | H14: 245 | I14: 100 | J14: 0 | K14: 0 | L14: 0 | M14: 0 | N14: 2000 | O14: 0 | P14: 24500 | Q14: 26500 | R14: 0 | S14: 0 | T14: =+Table33[[#This Row],[Total Claimed Amount]]+Table33[[#This Row],[Invoice/Credits/ Payments resulting from prior Audit Adjustments]]+Table33[[#This Row],[Adjustments]] -> 26500
A15: 1245639 | B15: 6125 | C15: 2019-05-30 | D15: 2019-05-01 | E15: 2019-05-30 | F15: Direct Labor | G15: Senior Scientist | H15: 123 | I15: 200 | J15: 24600 | K15: 0 | L15: 0 | M15: 0 | N15: 0 | O15: 0 | P15: 0 | Q15: 24600 | R15: 0 | S15: 0 | T15: =+Table33[[#This Row],[Total Claimed Amount]]+Table33[[#This Row],[Invoice/Credits/ Payments resulting from prior Audit Adjustments]]+Table33[[#This Row],[Adjustments]] -> 24600
A16: 1235468 | B16: 7656 | C16: 2019-06-30 | D16: 2019-06-01 | E16: 2019-06-30 | F16: Direct Labor | G16: Project Controller | H16: 165 | I16: 300 | J16: 49500 | K16: 1000 | L16: 0 | M16: 1000 | N16: 0 | O16: =M16*22% -> 220 | P16: 0 | Q16: 51720 | R16: 0 | S16: 0 | T16: =+Table33[[#This Row],[Total Claimed Amount]]+Table33[[#This Row],[Invoice/Credits/ Payments resulting from prior Audit Adjustments]]+Table33[[#This Row],[Adjustments]] -> 51720
A17: 1245639 | B17: 9187 | C17: 2019-07-31 | D17: 2019-07-01 | E17: 2019-07-31 | F17: Subcontractor Labor | G17: Scientist 1 | H17: 123 | I17: 100 | J17: 0 | K17: 0 | L17: 10000 | M17: 0 | N17: 3000 | O17: 0 | P17: 12300 | Q17: 25300 | R17: 0 | S17: 0 | T17: =+Table33[[#This Row],[Total Claimed Amount]]+Table33[[#This Row],[Invoice/Credits/ Payments resulting from prior Audit Adjustments]]+Table33[[#This Row],[Adjustments]] -> 25300
A18: 1235468 | B18: 10718 | C18: 2019-08-31 | D18: 2019-08-01 | E18: 2019-08-31 | F18: Direct Labor | G18: Senior Scientist | H18: 200 | I18: 200 | J18: 40000 | K18: 0 | L18: 0 | M18: 0 | N18: 0 | O18: 0 | P18: 0 | Q18: 40000 | R18: 0 | S18: 0 | T18: =+Table33[[#This Row],[Total Claimed Amount]]+Table33[[#This Row],[Invoice/Credits/ Payments resulting from prior Audit Adjustments]]+Table33[[#This Row],[Adjustments]] -> 40000
A19: 1245639 | B19: 12249 | C19: 2019-09-30 | D19: 2019-09-01 | E19: 2019-09-30 | F19: Direct Labor | G19: Project Controller | H19: 200 | I19: 300 | J19: 60000 | K19: 648 | L19: 0 | M19: 1000 | N19: 0 | O19: =M19*22% -> 220 | P19: 0 | Q19: 61868 | R19: 0 | S19: 0 | T19: =+Table33[[#This Row],[Total Claimed Amount]]+Table33[[#This Row],[Invoice/Credits/ Payments resulting from prior Audit Adjustments]]+Table33[[#This Row],[Adjustments]] -> 61868
A20: 1235468 | B20: 13780 | C20: 2019-10-30 | D20: 2019-10-01 | E20: 2019-10-30 | F20: Subcontractor Labor | G20: Scientist 1 | H20: 123 | I20: 100 | J20: 0 | K20: 0 | L20: 0 | M20: 2000 | N20: 0 | O20: =M20*22% -> 440 | P20: 12300 | Q20: 14740 | R20: 0 | S20: 0 | T20: =+Table33[[#This Row],[Total Claimed Amount]]+Table33[[#This Row],[Invoice/Credits/ Payments resulting from prior Audit Adjustments]]+Table33[[#This Row],[Adjustments]] -> 14740
A21: 1245639 | B21: 12249 | C21: 2019-11-30 | D21: 2019-11-01 | E21: 2019-11-30 | F21: Direct Labor | G21: Senior Scientist | H21: 213 | I21: 200 | J21: 42600 | K21: 0 | L21: 5454 | M21: 0 | N21: 0 | O21: 0 | P21: 0 | Q21: 48054 | R21: 0 | S21: 0 | T21: =+Table33[[#This Row],[Total Claimed Amount]]+Table33[[#This Row],[Invoice/Credits/ Payments resulting from prior Audit Adjustments]]+Table33[[#This Row],[Adjustments]] -> 48054
A22: 1235468 | B22: 13780 | C22: 2019-12-30 | D22: 2019-12-01 | E22: 2019-12-30 | F22: Direct Labor | G22: Project Controller | H22: 100 | I22: 300 | J22: 30000 | K22: 0 | L22: 0 | M22: 0 | N22: 0 | O22: 0 | P22: 0 | Q22: 30000 | R22: 0 | S22: 0 | T22: =+Table33[[#This Row],[Total Claimed Amount]]+Table33[[#This Row],[Invoice/Credits/ Payments resulting from prior Audit Adjustments]]+Table33[[#This Row],[Adjustments]] -> 30000
J23: 0 | K23: 0 | L23: 0 | M23: 0 | N23: 0 | O23: 0 | P23: 0 | Q23: =ROUND(SUM(J23:P23),2) -> 0 | R23: 0 | S23: 0 | T23: 0
A24: Total Costs Claimed | H24: =ROUND(SUM(H11:H23),2) -> 1707 | J24: =ROUND(SUM(J11:J23),2) -> 276200 | K24: 10271 | L24: 25454 | M24: 9623 | N24: 5050 | O24: 2117.06 | P24: 59100 | Q24: 387815.06 | R24: 0 | S24: -100 | T24: 387715.06
A28: ='T&M CPA ECC Template'!A305 -> Template Revised: 11/8/2023

Sheet Sample Subcontractor Summary
A1: Summary of Subcontractor/Consultant/Temp Labor Charges
E3: This is a Sample "Summary of Subcontractor/Consultant/Temp Labor Charges" - (These numbers serve only as an example)
B4: Dollar Amount | E4: Use the "Subcontractor Summary Template" Sheet
A5: Subcontractor A | B5: 59100
A6: Subcontractor B | B6: 0
A7: Subcontractor C | B7: 0
A8: Subtotal | B8: =SUM(B5:B7) -> 59100
A10: Consultant A | B10: 0
A11: Consultant B | B11: 0
A12: Subtotal | B12: =SUM(B10:B11) -> 0
A14: Temp A | B14: 0
A15: Temp B | B15: 0
A16: Subtotal | B16: =SUM(B14:B15) -> 0
A18: Total Charges | B18: =SUM(B8,B12,B16) -> 59100 | C18: NOTE: Total ties back to "Sample T&M ECC - Subcontracts/Consultants/ Temp. Labor Column Total)
A21: Total Charges need to reconcile to the total Subcontractor/Consultant/Temp Labor Charges on your ECC.
A23: During an audit, a detailed ECC may be required for any of the subcontractors/consultants/temp labor listed above.
A26: ='T&M CPA ECC Template'!A305 -> Template Revised: 11/8/2023
